Cogmind - Beta 15 @@@ ROGUE MODE // 2025.06.24 @ 19:35:51 Player: Storm Mk9 Result: Destroyed by YB-YHS(R) with Subdweller Machine Gun Performance ------------- Evolutions (0) 0 Regions Visited (2) 400 Robots Destroyed (30) 150 Value Destroyed (836) 836 Prototype IDs (3) 60 Alien Tech Used (0) 0 Bonus (0) 0 TOTAL SCORE: 1446 Bonus ------- None Cogmind --------- Core Integrity 0/250 Matter 232/300 Energy 100/100 System Corruption 0% Temperature Cool (0) Movement Treading (240) Ox1 Location -10/Subcaves Parts ------- > --- POWER (1) -------- (None) > --- PROPULSION (2) --- Light Treads > --- UTILITY (2) ------ Large Storage Unit Makeshift Kinetic Plating > --- WEAPON (2) ------- Subdweller Machine Gun Battle Cannon > --- INVENTORY (15) --- Heat Sink Improved Heat Sink High-capacity Storage Unit Makeshift Targeting Computer Tractor Beam EM Pulse Gun Small Laser Assault Rifle Mining Laser Flamer Flamer Peak State ------------ > --- POWER ------------ Light Ion Engine > --- PROPULSION ------- Light Treads > --- UTILITY ---------- Large Storage Unit Makeshift Kinetic Plating > --- WEAPON ----------- Subdweller Machine Gun Battle Cannon > --- INVENTORY -------- Heat Sink Improved Heat Sink High-capacity Storage Unit Makeshift Targeting Computer Tractor Beam EM Pulse Gun Small Laser Assault Rifle Subdweller Machine Gun Mining Laser Flamer [Rating: 12] Favorites ----------- Power Ion Engine Engine Ion Engine Propulsion Light Treads Treads Light Treads Wheel Wheel Utility Light Armor Plating Device Tractor Beam Storage Large Storage Unit Protection Light Armor Plating Weapon Assault Rifle Energy Gun Medium Laser Ballistic Gun Assault Rifle Ballistic Cannon Battle Cannon Special Weapon Mining Laser Build | -11 -10 -10 ------- Run | Yrd Mat Sub Slots Evolved . | . . . Power . | . . . Propulsion . | . . . Utility . | . . . Weapon . | . . . Parts Attached 26 | 7 8 11 Power 3 | 1 1 1 Engine 3 | 1 1 1 Core . | . . . Reactor . | . . . Propulsion 5 | 2 1 2 Treads 4 | 2 1 1 Leg . | . . . Wheel 1 | . . 1 Hover . | . . . Flight . | . . . Utility 9 | 2 4 3 Device 1 | 1 . . Storage 3 | 1 2 . Processor . | . . . Hackware . | . . . Protection 5 | . 2 3 Artifact . | . . . Weapon 9 | 2 2 5 Energy Gun 2 | 1 1 . Energy Cannon . | . . . Ballistic Gun 5 | 1 . 4 Ballistic Cannon 1 | . . 1 Launcher . | . . . Special Weapon 1 | . 1 . Impact Weapon . | . . . Slashing Weapon . | . . . Piercing Weapon . | . . . Special Melee Weapon . | . . . Unidentified Prototypes . | . . . Parts Lost 13 | . 1 12 Power 2 | . . 2 Propulsion 4 | . . 4 Utility 3 | . . 3 Weapon 4 | . 1 3 Highest Loss Streak 6 | . 1 6 To Critical Strikes . | . . . Average Backups 13 | 1 13 13 Power . | . 1 . Propulsion 1 | . 1 . Utility 6 | . 6 5 Weapon 4 | . 4 6 Tool/Special . | . . . Unused Backups 8 | . 1 7 Power . | . . . Propulsion . | . . . Utility 5 | . 1 4 Weapon 3 | . . 3 Tool/Special . | . . . Average Slot Usage (%) 99 | . 100 97 Engine 13 | . 14 13 Treads 27 | . 28 25 Storage 14 | . 14 14 Protection 13 | . 13 14 Energy Gun 9 | . 13 . Ballistic Gun 16 | . 14 25 Peak Build Rating 12 | 7 8 12 Average Rating 8 | 4 7 9 On Entrance 5 | . 7 8 Naked Turns . | . . . Heaviest Build 52 | 15 52 37 Greatest Support 40 | 40 40 40 Greatest Overweight (x) 1 | . 1 1 Average Overweight (x) . | . . . Largest Inventory Capacity 20 | 8 20 15 Average Capacity 15 | 6 15 15 Most Carried 15 | 4 15 15 Average Carried 13 | 1 13 13 Final Capacity 15 | 8 15 15 Final Carried 15 | 2 15 11 Class Distribution -------------------- 100% | Mutant Dominant Class ---------------- Mutant | -10/Materials Mutant | -10/Subcaves Resources | -11 -10 -10 ----------- Run | Yrd Mat Sub Matter Collected 760 | 276 274 210 Remotely 37 | 31 6 . Salvage Created 1079 | 89 812 178 Parts 58 | 3 44 11 Haulers Intercepted 2 | . 2 . Recyclers Shooed . | . . . Parts Field Recycled . | . . . Retrieved Matter . | . . . Parts Self-Destructed 5 | . . 5 Prevented . | . . . Kills | -11 -10 -10 ------- Run | Yrd Mat Sub Combat Hostiles Destroyed 24 | . 18 6 Guns 23 | . 18 5 Cannons 1 | . . 1 Classes Destroyed 7 | 1 5 1 Worker 1 | . 1 . Hauler 2 | . 2 . Recycler 1 | 1 . . Watcher 2 | . 2 . Swarmer 3 | . 3 . Grunt 15 | . 15 . Subdweller 6 | . . 6 Best Kill Streak 4 | 1 4 2 Combat Bots Only 3 | . 3 2 Max Kills in Single Turn 1 | 1 1 1 Gunslinging . | . . . Exploded . | . . . Melee . | . . . Uniques/NPCs Destroyed . | . . . Combat | -11 -10 -10 -------- Run | Yrd Mat Sub Hostile Shots Fired 158 | . 71 87 Missed 34 | . 20 14 Hits 124 | . 51 73 Projectile 124 | . 51 73 Critical Strikes 2 | . . 2 Damage Taken 2097 | . 574 1523 Core 250 | . 42 208 Absorbed by Shields . | . . . Ignored by Resistances 11 | . . 11 Core Remaining (%) 100 | 100 . . Volleys Fired 99 | 2 60 37 Largest 2 | 2 2 2 Hottest 100 | 70 100 63 Shots Fired 196 | 4 118 74 Gun 184 | 4 116 64 Cannon 10 | . . 10 Launcher . | . . . Special 2 | . 2 . Kinetic 134 | 2 58 74 Thermal 62 | 2 60 . Explosive . | . . . Electromagnetic . | . . . Robot Hit Streak 33 | 4 33 24 Robot Miss Streak 2 | . 2 2 Penetration Max . | . . . Secondary Targets 4 | . 2 2 Max Gunslinging Chain 1 | . 1 1 Shots Hit Robots 154 | 4 89 61 Core Hits 56 | 2 41 13 Critical Kills . | . . . Critical Parts Destroyed . | . . . Critical Strikes 4 | . 3 1 Burn 3 | . 3 . Blast 1 | . . 1 Melee Attacks . | . . . Impact . | . . . Slashing . | . . . Piercing . | . . . Sneak Attacks . | . . . Combat Hostiles . | . . . Follow-up Attacks . | . . . Damage Inflicted 2237 | 50 1163 1024 Guns 2072 | 50 1163 859 Cannons 165 | . . 165 Explosions . | . . . Melee . | . . . Ramming . | . . . Kinetic 1552 | 25 503 1024 Thermal 685 | 25 660 . Explosive . | . . . Electromagnetic . | . . . Impact . | . . . Slashing . | . . . Piercing . | . . . Highest Corruption . | . . . Average Corruption . | . . . Corruption Purged . | . . . Corruption Blocked . | . . . Overload Shots . | . . . Overflow Damage . | . . . Projectiles . | . . . Explosions . | . . . Melee . | . . . Knockbacks 3 | . . 3 Impact . | . . . Kinetic 3 | . . 3 Secondary . | . . . Self-Inflicted Damage . | . . . Shots . | . . . Rammed 1 | . 1 . Targets Rammed 1 | . 1 . Kicked . | . . . Crushed . | . . . Highest Temperature 294 | 18 294 . Average Temperature 77 | 10 79 . Received Heat Transfer 624 | . 294 330 Siege Activations . | . . . Martial Activations . | . . . Shielding Activations . | . . . Robots Disrupted . | . . . Combat Hostiles . | . . . Robots Corrupted . | . . . Combat Hostiles . | . . . Parts Fried . | . . . Impact Corruptions . | . . . Robots Melted . | . . . Combat Hostiles . | . . . Parts Melted 2 | . 2 . Heat Transferred 2075 | 74 2001 . Parts Sabotaged . | . . . Parts Stolen . | . . . Parts Stripped . | . . . Power Chain Reactions . | . . . Alert | -11 -10 -10 ------- Run | Yrd Mat Sub Maximum Alert Level . | . . . Low Security (%) 100 | 100 100 . Level 1 . | . . . Level 2 . | . . . Level 3 . | . . . Level 4 . | . . . Level 5 . | . . . High Security . | . . . Max Security . | . . . Peak Influence 198 | 5 198 . Initial . | . . . Average 89 | . 91 . Influence Increases 557 | 5 552 . Destroy 0b10 Robot/C 360 | . 360 . Destroy 0b10 Robot/NC 30 | 5 25 . Destroy Leader 78 | . 78 . Successful Hack 11 | . 11 . Select Force Hacks 60 | . 60 . Destroy Structure 3 | . 3 . Lose Combat Pursuer 15 | . 15 . Influence Decreases 557 | 5 453 99 Entered New Map 48 | . . 48 Time Decay 469 | 5 443 21 Lost Part 40 | . 10 30 Squads Dispatched 5 | . 5 . Investigation 3 | . 3 . Extermination . | . . . Reinforcement 2 | . 2 . Assault . | . . . Garrison . | . . . Intercept . | . . . Searches Triggered . | . . . Construction Impeded . | . . . Haulers Reinforced . | . . . Active Scanning Responses . | . . . Cargo Convoy Interrupts . | . . . Stealth | -11 -10 -10 --------- Run | Yrd Mat Sub Distress Signals . | . . . Communications Jammed . | . . . Distress Signals . | . . . Times Spotted 32 | . 24 8 Peak Tracking Total 3 | . 3 2 Tactical Retreats 1 | . 1 . Traps | -11 -10 -10 ------- Run | Yrd Mat Sub Traps Triggered 1 | . 1 . Indirectly . | . . . Trap Hack Attempts . | . . . Triggered . | . . . Disarmed . | . . . Reprogrammed . | . . . Reused . | . . . Traps Extracted . | . . . Installed . | . . . Triggered . | . . . Machines | -11 -10 -10 ---------- Run | Yrd Mat Sub Machines Disabled . | . . . Max in Single Turn . | . . . Machines Repaired . | . . . Machines Dismantled . | . . . Machines Sabotaged . | . . . Overloaded Fab Kills . | . . . Hacking | -11 -10 -10 --------- Run | Yrd Mat Sub Machines Accessed 7 | . 7 . Terminals 5 | . 5 . Fabricators . | . . . Repair Stations . | . . . Recycling Units 2 | . 2 . Scanalyzers . | . . . Garrison Access . | . . . Total Hacks 17 | . 17 . Successful 13 | . 13 . Failed 4 | . 4 . Catastrophic . | . . . Database Lockouts . | . . . Manual 14 | . 14 . Terminals 15 | . 15 . Fabricators . | . . . Repair Stations . | . . . Recycling Units 2 | . 2 . Scanalyzers . | . . . Garrison Access . | . . . Terminal Hacks 5 | . 5 . Robot Analysis 2 | . 2 . Prototype ID Bank 1 | . 1 . Terminal Index 1 | . 1 . Locate Traps 1 | . 1 . Fabricator Hacks . | . . . Repair Station Hacks . | . . . Recycling Unit Hacks . | . . . Scanalyzer . | . . . Garrison Access Hacks . | . . . Unauthorized Hacks 8 | . 8 . Terminals 6 | . 6 . Botnet 1 | . 1 . Skim 5 | . 5 . Fabricators . | . . . Repair Stations . | . . . Recycling Units 2 | . 2 . Tunnel 2 | . 2 . Scanalyzers . | . . . Garrison Access . | . . . Data Cores Recovered . | . . . Used . | . . . Hacking Detections 5 | . 5 . Full Trace Events 1 | . 1 . Feedback Events . | . . . Feedback Blocked . | . . . Robot Schematics Acquired . | . . . Robots Built . | . . . Authchips . | . . . Time . | . . . Total Robot Build Rating . | . . . Part Schematics Acquired . | . . . Parts Built . | . . . Authchips . | . . . Time . | . . . Total Part Build Rating . | . . . Parts Repaired . | . . . Time . | . . . Parts Recycled . | . . . Recycled Matter . | . . . Retrieved Matter . | . . . Retrieved Components . | . . . Parts Scanalyzed . | . . . Part Schematics Acquired . | . . . Parts Damaged . | . . . Bothacking | -11 -10 -10 ------------ Run | Yrd Mat Sub Used RIF Installer . | . . . Robots Hacked . | . . . Non-combat . | . . . Combat . | . . . Robot Hacks Applied . | . . . Relay Couplers Released . | . . . Fabnet Peak Effective % . | . . . Robots Rewired . | . . . Allies Hacked . | . . . Hacks Repelled . | . . . Allies | -11 -10 -10 -------- Run | Yrd Mat Sub Total Allies . | . . . Largest Group . | . . . Highest-Rated Group . | . . . Highest-Rated Ally . | . . . Total Orders . | . . . Ally Attacks . | . . . Total Damage . | . . . Kills . | . . . Allies Corrupted . | . . . Allies Melted . | . . . Intel | -11 -10 -10 ------- Run | Yrd Mat Sub Active Infowar (turns) . | . . . Robot Analysis Total 2 | . 2 . Derelict Logs Recovered . | . . . Drone Launches . | . . . Drone Recoveries . | . . . Exploration | -11 -10 -10 ------------- Run | Yrd Mat Sub Turns Passed 5042 | 84 3698 1260 Spaces Moved 2327 | 47 1630 650 Core 11 | 11 . . Treads 2316 | 36 1630 650 Legs . | . . . Wheels . | . . . Hover . | . . . Flight . | . . . Fastest Speed 50 | 50 160 160 Average Speed 169 | 134 170 167 Slowest Speed 240 | 160 240 240 Overloaded Moves . | . . . Propulsion Burnouts . | . . . Robots Hopped . | . . . Potential Cave-ins . | . . . Cave-ins Triggered . | . . . Exploration Rate (%) 50 | 5 98 49 Regions Visited 2 Branch Regions 1 Pre-discovered Areas 3 | . 2 1 Known Exits Taken . | . . . Unknown Exits Taken 2 | 1 1 . Scrap Searched . | . . . Spaces Dug 2 | . 2 . Terrain Destroyed 2 | . 2 . Melee . | . . . Projectile 2 | . 2 . AOE . | . . . Terrain Rammed . | . . . Walls Destroyed . | . . . Machines Disabled . | . . . Actions | -11 -10 -10 --------- Run | Yrd Mat Sub Total 3232 | 64 2423 745 Wait 738 | . 702 36 Move 2325 | 46 1629 650 Hop . | . . . Pick Up 32 | 9 15 8 Fast Attach . | . . . Attach 18 | 7 1 10 Detach . | . . . Swap 12 | . 10 2 Drop 7 | . 5 2 Fire 99 | 2 60 37 Melee . | . . . Ram . | . . . Kick . | . . . Crush 1 | . 1 . Escape Stasis . | . . . Rewire . | . . . Trap . | . . . Miscellaneous . | . . . Route ------- -11/Scrapyard -10/Materials (discovered 6 exits: [*Mat x3] / [*Min x2] / [*Sub]) -10/Subcaves (discovered 1 exit: [*Mat]) History --------- Turn | Location | Event 8 | -11/Scrapyard | Discovered new exit (range 15) 85 | -11/Scrapyard | Entered Materials 263 | -10/Materials | Discovered new exit (range 16) 300 | -10/Materials | Build established: Mutant 664 | -10/Materials | Discovered new exit (range 15) 1035 | -10/Materials | Discovered new exit (range 15) 1150 | -10/Materials | Discovered new exit (range 16) 1376 | -10/Materials | Discovered new exit (range 9) 1724 | -10/Materials | Discovered new exit (range 9) 3783 | -10/Materials | Entered Subcaves 3879 | -10/Subcaves | Lost 4 parts (1p2n1u) 4144 | -10/Subcaves | Shifting Twisted Machinery released Sub. Laser 4157 | -10/Subcaves | Shifting Twisted Machinery released Battle Cannon 4337 | -10/Subcaves | Learned location of Zion (-6) 4337 | -10/Subcaves | Met a Zionite searching for "candidates" 4340 | -10/Subcaves | Shifting Twisted Machinery released Sub. Beam Cannon 4848 | -10/Subcaves | Core integrity fell below 50% 4878 | -10/Subcaves | Core integrity fell below 20% 4898 | -10/Subcaves | Lost 6 parts (2n1u3w) 4963 | -10/Subcaves | Shifting Twisted Machinery released Lgt. Humpback 4980 | -10/Subcaves | Shifting Twisted Machinery released Flamer 4986 | -10/Subcaves | Discovered new exit (range 12) 5043 | -10/Subcaves | Destroyed by YB-YHS(R) with Subdweller Machine Gun Last Messages --------------- 04851_ Assault Rifle destroyed. 04852_ Lgt. Armor Plating destroyed. 04855_ 5B-AOC(R) knocked back. 04858_ 5B-AOC(R) destroyed. 04864_ 2V-6AM(R) knocked back. 04867_ Sub. Machine Gun destroyed. 04880_ 2V-6AM(R) suffers critical hit (Blast). 04880_ 2V-6AM(R) destroyed. 04883_ Acquired 7 matter. 04885_ Acquired 2 matter. 04893_ Acquired 5 matter. 04895_ Acquired 30 matter. 04900_ Acquired 3 matter. Lgt. Humpback falls loose from the Twisted Machinery. Flamer falls loose from the Twisted Machinery. 04986_ EXIT=FOUND 04991_ Acquired Flamer. 05038_ Lgt. Ion Engine destroyed. 05040_ KF-0WB(R) knocked back. Map ----- +----------------------------------------------------+ | ??????????????????????# #??????????????????????? | | ??????????????????????# ##??????????????????????? | | ??????????????????????# #???????????????????????? | | ?????????????????????## ##???????????????????????? | | ????????????????????## #????????????????????????? | | ???????????????###?## ###??????????????????????? | | ??????????????## ## ##?????????????????????? | | ??????????????# "#?????????? ????????? | | ??????????????### ""#????????## ????????? | | ????????????????# ####??????? ???????? | | ????????????????# " ## #????????? ???????? | | ????????????????# " ### #????????? #??????? | | ??????????????####" #######?????? #??????? | | ??????????????#""""" #"""##???? #??????? | | ??????????????## "! " ##??? #??????? | | ???????????????#"" " " #?? ##?????? | | ???????????????# "## # ### #?????? | | ???????????????### "##### #????? | | ????????????????# ""#?## #???????????? | | ????????????????## " ###" #???????????? | | ?????????????????#"" #" #???????????? | | ?????????????????#" " # ###???????????? | | ????????????????#" #### ## < #?????????????? | | ?????????????????# #???# #? ##?????????????? | | ????????????????????????# #? ##??????????????? | | ??????????????# ???????#@% #? #???????????????? | | ???????????????# ## #?####???????????????? | | ???????????????????# RR #????????????????????? | | ???????????????????# #??????????????????? | | ???????????????????# #????????????????? | | ???????????????????# #???????????????? | | ???????????????????# ## #???????????????? | | ???????????????????## ##?# ##???????????????? | | ????????????????????#######???###????????????????? | | ?????????????????????????????????????????????????? | | ?????????????????????????????????????????????????? | | ?????????????????????????????????????????????????? | | ?????????????????????????????????????????????????? | | ?????????????????????????????????????????????????? | | ?????????????????????????????????????????????????? | | ?????????????????????????????????????????????????? | | ?????????????????????????????????????????????????? | | ?????????????????????????????????????????????????? | | ?????????????????????????????????????????????????? | | ?????????????????????????????????????????????????? | | ?????????????????????????????????????????????????? | | ?????????????????????????????????????????????????? | | ?????????????????????????????????????????????????? | | | | | +----------------------------------------------------+ Best States ------------- Heat Dissipation 25 Energy Generation 10 Energy Capacity 250 Matter Stores 300 Matter Capacity 300 Sight Range 16 Terrain Scan Density 10 Armor Coverage 150 Resistance: KI 10 Evasion (%) 50 Recoil Reduction 2 Item Schematics ----------------- None Robot Schematics ------------------ None Fabricated ------------ Nothing Repaired ---------- Nothing Alien Tech Used ----------------- None Achievements -------------- None Challenges ------------ None Game ------ Seed ServoStructuralMaul Manual? 0 Play Time 00:24:54 Cumulative 86.1 hours Start 2025.06.24 @ 19:06:40 End 2025.06.24 @ 19:35:51 Sessions 1 Manual Loads 0 Difficulty Rogue Special Mode None Game No. 84 Rogue 65 Adventurer 0 Explorer 19 Win Type - Total 0 Types 0/0/0/0/0/0/0/0/0/0 Lore% 55 Gallery% 45 Achievement% 68 Wizard Run 0 Options --------- Layout 1 ASCII 0 Keyboard 0 Movement Mouse Keybinds 0 Fullscreen 2 Font 16/SmallcapsGlow Map View 50x40 Zoom Use 0% Tactical HUD 1 Map Filters NONE Filters NONE Steam SD RUN: 799efc24-283e-4f70-b2e6-fcf6ec724a69